[Event "FIDE Womens Grand Swiss 2023"]
[Site "Douglas/Isle of Man"]
[Date "2023.11.04"]
[Round "10.8"]
[White "Muzychuk, Mariya"]
[Black "Milliet, Sophie"]
[Result "1-0"]
[ECO "D46"]
[WhiteElo "2519"]
[BlackElo "2391"]
[Annotator "RC"]
[PlyCount "77"]
[EventDate "2023.10.04"]
[EventType "swiss"]
[EventCountry "GBR"]
[SourceTitle "playchess.com"]
[Source "ChessBase"]
[SourceQuality "1"]
[TimeControl "40/6000+30:20/3000+30:900+30"]

1. d4 {[%emt 0:10:05]} Nf6 {[%emt 0:10:09]} 2. c4 {[%emt 0:00:09]} e6 {[%emt 0:00:04]} 3. Nf3 {[%emt 0:00:14]} d5 {[%emt 0:02:55]} 4. Nc3 {[%emt 0:00:26]} c6 {[%emt 0:00:24]} 5. e3 {[%emt 0:00:31]} Nbd7 {[%emt 0:00:09]} 6. Qc2 {[%emt 0:00:16]} Bd6 {[%emt 0:00:34]} 7. Bd3 {[%emt 0:00:14]} O-O {[%emt 0:00:17]} 8. O-O {[%emt 0:00:07]} dxc4 {[%emt 0:00:09]} 9. Bxc4 {[%emt 0:00:05]} a6 {[%emt 0:00:05]} 10. Ne4 {[%emt 0:10:17]} Nxe4 {[%emt 0:07:30]} 11. Qxe4 {[%emt 0:00:08]} c5 {[%emt 0:01:33]} 12. Rd1 {[%emt 0:04:23]} Qe7 {[%emt 0:15:59]} 13. b3 {[%emt 0:04:42]} Nf6 {[%emt 0:07:28]} 14. Qh4 {[%emt 0:00:53]} b5 {[%emt 0:00:31]} 15. dxc5 {[%emt 0:03:11]} Bxc5 {[%emt 0:01:11]} 16. Bd3 {[%emt 0:00:08]} Bb7 {[%emt 0:02:06]} 17. Bb2 {[%emt 0:00:39]} Ne4 {[%emt 0:00:48]} 18. Qf4 {[%emt 0:16:44]} f5 {[%emt 0:10:43]} 19. h4 {[%emt 0:07:47]} Bd6 {[%emt 0:11:50]} 20. Be5 {[%emt 0:01:38]} Ba3 {[%emt 0:00:09]} 21. h5 {[%emt 0:06:23]} Rac8 {[%emt 0:04:16]} 22. Nd4 {[%emt 0:08:20]} Nc3 {[%emt 0:04:59]} 23. Rd2 {[%emt 0:01:44]} Nd5 {[%emt 0:04:32]} 24. Qg3 {[%emt 0:00:23]} f4 {[%emt 0:15:00]} 25. exf4 {[%emt 0:02:51]} Bc1 {[%emt 0:01:56]} 26. Nxe6 {[%emt 0:05:26]} Bxd2 {[%emt 0:00:33]} 27. Nxg7 {[%emt 0:04:38]} Qxe5 {[%emt 0:03:50]} 28. fxe5 {[%emt 0:05:39]} Kh8 {[%emt 0:00:06]} 29. Ne6 {[%emt 0:03:41]} Rg8 {[%emt 0:00:15]} 30. Qf3 {[%emt 0:00:56]} Rce8 {[%emt 0:02:18]} 31. Be4 {[%emt 0:01:42]} Bc3 {[%emt 0:02:14]} 32. Bxd5 {[%emt 0:01:02]} Rxe6 {[%emt 0:00:05]} 33. Rd1 {[%emt 0:00:50]} Bxd5 {[%emt 0:00:41]} 34. Rxd5 {[%emt 0:00:05]} b4 {[%emt 0:00:26]} 35. Qf5 {[%emt 0:00:35]} Rh6 {[%emt 0:01:43]} 36. Rd6 {[%emt 0:00:51]} Rxd6 {[%emt 0:00:15]} 37. exd6 {[%emt 0:00:03]} Kg7 {[%emt 0:00:22]} 38. Qg5+ {[%emt 0:01:23]} Kh8 {[%emt 0:00:03]} 39. Qe7 {[%emt 0:00:17]} 1-0

[Event "FIDE Womens Grand Swiss 2023"]
[Site "Douglas/Isle of Man"]
[Date "2023.11.04"]
[Round "10.9"]
[White "Wagner, Dinara"]
[Black "Goryachkina, Aleksandra"]
[Result "1/2-1/2"]
[ECO "D12"]
[WhiteElo "2461"]
[BlackElo "2558"]
[Annotator "TA"]
[PlyCount "61"]
[EventDate "2023.10.04"]
[EventType "swiss"]
[EventCountry "GBR"]
[SourceTitle "playchess.com"]
[Source "ChessBase"]
[SourceQuality "1"]
[TimeControl "40/6000+30:20/3000+30:900+30"]

{[%evp 18,61,8,16,16,12,16,15,17,9,21,0,12,0,13,0,16,0,16,0,14,8,9,6,12,10,7,12,6,0,0,0,0,0,0,0,0,0,0,0,7,5,4,-18,4,-13]} 1. d4 {[%emt 0:10:04]} d5 {[%emt 0:10:12]} 2. c4 {[%emt 0:00:09]} c6 {[%emt 0:00:09]} 3. Nf3 {[%emt 0:00:18]} Nf6 {[%emt 0:00:13]} 4. e3 {[%emt 0:00:05]} Bf5 {[%emt 0:00:19]} 5. cxd5 {[%emt 0:00:25]} cxd5 {[%emt 0:00:22]} 6. Qb3 {[%emt 0:00:07]} Qc7 {[%emt 0:02:58]} 7. Bd2 {[%emt 0:00:16]} e6 {[%emt 0:02:25]} 8. Bb5+ {[%emt 0:00:17]} Nc6 {[%emt 0:00:30]} 9. O-O {[%emt 0:00:32]} Bd6 {[%emt 0:01:14]} 10. Bb4 {[%emt 0:00:32] The position is equal.} O-O {[%emt 0:02:43] D12: Slav Defence: 3 Nf3 Nf6 4 e3 Bf5.} 11. Bxd6 {[%emt 0:00:18]} Qxd6 {[%emt 0:00:06]} 12. Rc1 {[%emt 0:00:32] Recently 12.Nbd2 got a lot of attention.} Rfc8 {[%emt 0:07:14][%cal Oc6d4] [#] White must now prevent ...Nxd4!} 13. Nbd2 {[%emt 0:00:47]} Ne7 {[%emt 0:03:09]} 14. Ne5 {[%emt 0:07:07]} Ng4 {[%emt 0:06:58]} 15. Nef3 {[%emt 0:03:24]} Nf6 {[%emt 0:00:15]} 16. Ne5 {[%emt 0:00:38]} Ng4 {[%emt 0:00:06]} 17. Nef3 {[%emt 0:00:15]} Nf6 {[%emt 0:00:07]} 18. h3 {[%emt 0:00:12] [#]} Ne4 $146 {[%emt 0:03:58]} ({Predecessor:} 18... Rc7 19. Rxc7 Qxc7 20. Qa3 a6 21. Bf1 Ne8 22. Nb3 Qd6 23. Nc5 Ra7 24. Rc1 Qd8 25. Qa4 Nd6 {½-½ Roelvaag,M (2196)-Schandorff,L (2510) Politiken Cup 31st 2009 (3)}) 19. Nxe4 {[%emt 0:18:02]} Bxe4 {[%emt 0:00:19]} 20. Nd2 {[%emt 0:00:24]} Bg6 {[%emt 0:00:36]} 21. Bf1 {[%emt 0:06:19]} Rc7 {[%emt 0:03:08]} 22. Rc3 {[%emt 0:01:41]} Rac8 {[%emt 0:06:46]} 23. Rac1 {[%emt 0:00:04]} h6 {[%emt 0:02:32]} 24. Nf3 {[%emt 0:01:19]} Be4 {[%emt 0:05:39]} 25. Ne5 {[%emt 0:03:42]} Rxc3 {[%emt 0:10:33]} 26. Rxc3 {[%emt 0:12:04]} Rxc3 {[%emt 0:00:41]} 27. Qxc3 {[%emt 0:00:11]} f6 {[%emt 0:02:55]} 28. Nd3 {[%emt 0:00:13]} Bxd3 {[%emt 0:00:50]} 29. Bxd3 {[%emt 0:01:02]} Kf7 {[%emt 0:01:09]} 30. Qc5 {[%emt 0:14:30]} Qb8 {[%emt 0:00:56]} 31. e4 {[%emt 0:03:23] An even fight not without its subleties.   Weighted Error Value: White=0.06 (flawless) /Black=0.04 (flawless)} 1/2-1/2

[Event "FIDE Womens Grand Swiss 2023"]
[Site "Douglas/Isle of Man"]
[Date "2023.11.04"]
[Round "10.10"]
[White "Efroimski, Marsel"]
[Black "Kamalidenova, Meruert"]
[Result "0-1"]
[ECO "B45"]
[WhiteElo "2447"]
[BlackElo "2351"]
[Annotator "ChessBase"]
[PlyCount "86"]
[EventDate "2023.10.04"]
[EventType "swiss"]
[EventCountry "GBR"]
[SourceTitle "playchess.com"]
[Source "ChessBase"]
[SourceQuality "1"]
[TimeControl "40/6000+30:20/3000+30:900+30"]

1. e4 {[%emt 0:10:01]} c5 {[%emt 0:10:06]} 2. Nf3 {[%emt 0:00:02]} e6 {[%emt 0:00:05]} 3. d4 {[%emt 0:03:05]} cxd4 {[%emt 0:00:06]} 4. Nxd4 {[%emt 0:00:01]} Nf6 {[%emt 0:00:07]} 5. Nc3 {[%emt 0:00:03]} Nc6 {[%emt 0:00:05]} 6. a3 {[%emt 0:00:38]} d6 {[%emt 0:00:15]} 7. Be3 {[%emt 0:00:28]} Be7 {[%emt 0:00:11]} 8. Be2 {[%emt 0:00:17]} O-O {[%emt 0:00:33]} 9. Qd2 {[%emt 0:07:45]} e5 {[%emt 0:02:31]} 10. Nf3 {[%emt 0:07:52]} Be6 {[%emt 0:03:16]} 11. Ng5 {[%emt 0:04:30]} Qd7 {[%emt 0:08:48]} 12. O-O-O {[%emt 0:08:41]} a6 {[%emt 0:05:51]} 13. Nd5 {[%emt 0:05:56]} Rad8 {[%emt 0:06:44]} 14. f3 {[%emt 0:09:22]} h6 {[%emt 0:06:40]} 15. Nb6 {[%emt 0:03:15]} Qc7 {[%emt 0:01:21]} 16. Nxe6 {[%emt 0:01:06]} fxe6 {[%emt 0:00:05]} 17. Bc4 {[%emt 0:01:37]} d5 {[%emt 0:02:27]} 18. exd5 {[%emt 0:09:15]} Nd4 {[%emt 0:02:25]} 19. Bxd4 {[%emt 0:10:25]} exd4 {[%emt 0:00:37]} 20. Qxd4 {[%emt 0:00:12]} Bc5 {[%emt 0:01:06]} 21. Qc3 {[%emt 0:00:46]} Qxb6 {[%emt 0:01:53]} 22. dxe6 {[%emt 0:00:06]} Kh8 {[%emt 0:00:47]} 23. Rhe1 {[%emt 0:01:20]} Be7 {[%emt 0:00:43]} 24. Qe5 {[%emt 0:02:02]} Rc8 {[%emt 0:01:29]} 25. Bd3 {[%emt 0:01:28]} Qc5 {[%emt 0:00:45]} 26. Qxc5 {[%emt 0:04:40]} Rxc5 {[%emt 0:00:33]} 27. f4 {[%emt 0:01:37]} Rd5 {[%emt 0:04:05]} 28. Bg6 {[%emt 0:04:51]} Rfd8 {[%emt 0:01:47]} 29. Rxd5 {[%emt 0:00:58]} Nxd5 {[%emt 0:00:27]} 30. g3 {[%emt 0:00:30]} Kg8 {[%emt 0:00:25]} 31. Be4 {[%emt 0:03:51]} b6 {[%emt 0:00:41]} 32. c4 {[%emt 0:01:38]} Nf6 {[%emt 0:00:56]} 33. Bb7 {[%emt 0:00:33]} a5 {[%emt 0:00:20]} 34. Kc2 {[%emt 0:00:09]} Kf8 {[%emt 0:01:06]} 35. Kc3 {[%emt 0:00:08]} Ne8 {[%emt 0:00:35]} 36. b4 {[%emt 0:00:35]} Bf6+ {[%emt 0:00:34]} 37. Kc2 {[%emt 0:00:08]} Rd4 {[%emt 0:00:59]} 38. Kb3 {[%emt 0:07:58]} Nd6 {[%emt 0:00:34]} 39. Bd5 {[%emt 0:00:21]} b5 {[%emt 0:01:13]} 40. e7+ {[%emt 0:01:33]} Bxe7 {[%emt 0:00:36]} 41. Re6 {[%emt 0:50:22]} bxc4+ {[%emt 0:50:30]} 42. Bxc4 {[%emt 0:00:04]} Nxc4 {[%emt 0:00:20]} 43. Kc3 {[%emt 0:00:07]} Rd6 {[%emt 0:00:15]} 0-1

[Event "FIDE Womens Grand Swiss 2023"]
[Site "Douglas/Isle of Man"]
[Date "2023.11.04"]
[Round "10.11"]
[White "Gunina, Valentina"]
[Black "Socko, Monika"]
[Result "1/2-1/2"]
[ECO "E11"]
[WhiteElo "2439"]
[BlackElo "2380"]
[Annotator "ChessBase"]
[PlyCount "113"]
[EventDate "2023.10.04"]
[EventType "swiss"]
[EventCountry "GBR"]
[SourceTitle "playchess.com"]
[Source "ChessBase"]
[SourceQuality "1"]
[TimeControl "40/6000+30:20/3000+30:900+30"]

1. d4 {[%emt 0:10:08]} Nf6 {[%emt 0:10:04]} 2. c4 {[%emt 0:00:05]} e6 {[%emt 0:00:04]} 3. Nf3 {[%emt 0:00:08]} Bb4+ {[%emt 0:00:03]} 4. Bd2 {[%emt 0:00:09]} Qe7 {[%emt 0:00:03]} 5. e3 {[%emt 0:00:07]} b6 {[%emt 0:00:33]} 6. Bd3 {[%emt 0:00:11]} Bb7 {[%emt 0:00:05]} 7. O-O {[%emt 0:00:46]} Bxd2 {[%emt 0:00:25]} 8. Nbxd2 {[%emt 0:00:16]} O-O {[%emt 0:00:23]} 9. e4 {[%emt 0:01:11]} d6 {[%emt 0:00:02]} 10. Re1 {[%emt 0:01:35]} e5 {[%emt 0:04:47]} 11. Qe2 {[%emt 0:00:58]} a5 {[%emt 0:02:59]} 12. Rad1 {[%emt 0:00:40]} Nc6 {[%emt 0:01:16]} 13. d5 {[%emt 0:04:32]} Nb4 {[%emt 0:00:57]} 14. Bb1 {[%emt 0:00:24]} Bc8 {[%emt 0:02:41]} 15. Nf1 {[%emt 0:03:09]} Bg4 {[%emt 0:07:47]} 16. Ne3 {[%emt 0:00:19]} Bxf3 {[%emt 0:05:00]} 17. Qxf3 {[%emt 0:00:09]} g6 {[%emt 0:00:09]} 18. h4 {[%emt 0:06:12]} Na6 {[%emt 0:02:46]} 19. g3 {[%emt 0:02:47]} Nc5 {[%emt 0:02:17]} 20. Bc2 {[%emt 0:01:27]} a4 {[%emt 0:04:39]} 21. Rb1 {[%emt 0:03:10]} Rfb8 {[%emt 0:02:19]} 22. b4 {[%emt 0:01:35]} axb3 {[%emt 0:00:07]} 23. axb3 {[%emt 0:00:06]} Ra3 {[%emt 0:12:04]} 24. Kg2 {[%emt 0:02:46]} Rba8 {[%emt 0:01:11]} 25. b4 {[%emt 0:00:24]} Ncd7 {[%emt 0:00:37]} 26. Bb3 {[%emt 0:07:14]} Nh5 {[%emt 0:12:43]} 27. Rec1 {[%emt 0:05:14]} Nhf6 {[%emt 0:01:40]} 28. Nc2 {[%emt 0:00:33]} R3a7 {[%emt 0:00:08]} 29. Ne1 {[%emt 0:00:16]} Nh5 {[%emt 0:02:37]} 30. Nd3 {[%emt 0:00:20]} Ra3 {[%emt 0:01:05]} 31. Qd1 {[%emt 0:03:26]} Ng7 {[%emt 0:00:48]} 32. Ra1 {[%emt 0:03:36]} f5 {[%emt 0:04:32]} 33. exf5 {[%emt 0:00:21]} Rxa1 {[%emt 0:02:41]} 34. Rxa1 {[%emt 0:00:07]} Rxa1 {[%emt 0:00:04]} 35. Qxa1 {[%emt 0:00:04]} Nxf5 {[%emt 0:00:13]} 36. Bd1 {[%emt 0:02:13]} Nf6 {[%emt 0:01:30]} 37. Kh3 {[%emt 0:06:41]} Kg7 {[%emt 0:05:45]} 38. Qc3 {[%emt 0:06:22]} Nd4 {[%emt 0:05:40]} 39. Kg2 {[%emt 0:02:01]} Qd7 {[%emt 0:01:25]} 40. b5 {[%emt 0:16:08]} Qf5 {[%emt 0:02:38]} 41. f3 {[%emt 0:50:08]} h5 {[%emt 0:53:40]} 42. Nf2 {[%emt 0:03:28]} Qb1 {[%emt 0:03:19]} 43. Qd2 {[%emt 0:00:46]} Nf5 {[%emt 0:02:45]} 44. Kh2 {[%emt 0:04:45]} e4 {[%emt 0:00:00]} 45. Bc2 {[%emt 0:00:00]} Qb2 {[%emt 0:00:00]} 46. Nd1 {[%emt 0:00:00]} Qe5 {[%emt 0:00:00]} 47. f4 {[%emt 0:00:05]} Qa1 {[%emt 0:00:00]} 48. Qc3 {[%emt 0:03:48]} Qa2 {[%emt 0:00:00]} 49. Kg2 {[%emt 0:03:27]} Kf7 {[%emt 0:00:00]} 50. Kf2 {[%emt 0:02:09]} e3+ {[%emt 0:00:00]} 51. Ke1 {[%emt 0:01:19]} Nxg3 {[%emt 0:03:34]} 52. Qxe3 {[%emt 0:02:42]} Qxc2 {[%emt 0:04:49]} 53. Qe6+ {[%emt 0:00:07]} Kg7 {[%emt 0:00:01]} 54. Qe7+ {[%emt 0:00:10]} Kg8 {[%emt 0:00:03]} 55. Qd8+ {[%emt 0:02:00]} Kg7 {[%emt 0:00:34]} 56. Qe7+ {[%emt 0:00:18]} Kg8 {[%emt 0:00:04]} 57. Qd8+ {[%emt 0:00:04]} 1/2-1/2

[Event "FIDE Womens Grand Swiss 2023"]
[Site "Douglas/Isle of Man"]
[Date "2023.11.04"]
[Round "10.12"]
[White "Tania, Sachdev"]
[Black "Shuvalova, Polina"]
[Result "1-0"]
[ECO "D24"]
[WhiteElo "2389"]
[BlackElo "2506"]
[Annotator "ChessBase"]
[PlyCount "117"]
[EventDate "2023.10.04"]
[EventType "swiss"]
[EventCountry "GBR"]
[SourceTitle "playchess.com"]
[Source "ChessBase"]
[SourceQuality "1"]
[TimeControl "40/6000+30:20/3000+30:900+30"]

1. d4 {[%emt 0:10:17]} Nf6 {[%emt 0:10:04]} 2. c4 {[%emt 0:00:06]} e6 {[%emt 0:00:04]} 3. Nf3 {[%emt 0:00:06]} d5 {[%emt 0:00:04]} 4. Nc3 {[%emt 0:00:04]} dxc4 {[%emt 0:00:04]} 5. e4 {[%emt 0:00:50]} b5 {[%emt 0:00:07]} 6. e5 {[%emt 0:00:38]} Nd5 {[%emt 0:00:06]} 7. Nxb5 {[%emt 0:00:22]} Nb6 {[%emt 0:00:05]} 8. Be2 {[%emt 0:00:56]} Be7 {[%emt 0:00:09]} 9. O-O {[%emt 0:01:54]} Bb7 {[%emt 0:00:28]} 10. Be3 {[%emt 0:01:07]} Nc6 {[%emt 0:00:14]} 11. Nc3 {[%emt 0:04:06]} O-O {[%emt 0:00:11]} 12. a3 {[%emt 0:04:18]} Rb8 {[%emt 0:04:36]} 13. Qc2 {[%emt 0:01:51]} Na5 {[%emt 0:00:37]} 14. Nd2 {[%emt 0:09:21]} Qd7 {[%emt 0:07:06]} 15. Bf3 {[%emt 0:05:44]} Nb3 {[%emt 0:09:12]} 16. Nxb3 {[%emt 0:03:09]} cxb3 {[%emt 0:00:11]} 17. Qxb3 {[%emt 0:03:27]} Bxf3 {[%emt 0:00:23]} 18. gxf3 {[%emt 0:00:07]} Qc6 {[%emt 0:03:54]} 19. Qd1 {[%emt 0:09:09]} Nc4 {[%emt 0:08:41]} 20. Qa4 {[%emt 0:11:24]} Qxa4 {[%emt 0:09:37]} 21. Nxa4 {[%emt 0:00:22]} Nxb2 {[%emt 0:00:14]} 22. Nxb2 {[%emt 0:00:51]} Rxb2 {[%emt 0:00:04]} 23. Rfc1 {[%emt 0:00:23]} Rb7 {[%emt 0:00:34]} 24. a4 {[%emt 0:05:37]} a5 {[%emt 0:11:13]} 25. Rc6 {[%emt 0:02:39]} Bb4 {[%emt 0:00:19]} 26. Rac1 {[%emt 0:01:06]} Rc8 {[%emt 0:00:06]} 27. Kf1 {[%emt 0:09:55]} Kf8 {[%emt 0:00:33]} 28. Ke2 {[%emt 0:00:12]} Ke7 {[%emt 0:00:22]} 29. Kd3 {[%emt 0:02:25]} Kd7 {[%emt 0:02:22]} 30. Ke4 {[%emt 0:04:40]} Ba3 {[%emt 0:03:44]} 31. R1c4 {[%emt 0:02:24]} Rb4 {[%emt 0:06:13]} 32. Bd2 {[%emt 0:02:34]} Rxc4 {[%emt 0:00:24]} 33. Rxc4 {[%emt 0:00:02]} Ra8 {[%emt 0:00:06]} 34. d5 {[%emt 0:07:37]} exd5+ {[%emt 0:02:47]} 35. Kxd5 {[%emt 0:00:02]} Ra6 {[%emt 0:00:08]} 36. f4 {[%emt 0:02:52]} g6 {[%emt 0:02:57]} 37. Ke4 {[%emt 0:01:52]} f5+ {[%emt 0:14:05]} 38. exf6 {[%emt 0:02:03]} c5 {[%emt 0:00:12]} 39. Bc3 {[%emt 0:02:11]} Bb4 {[%emt 0:00:25]} 40. f5 {[%emt 0:01:10]} Bxc3 {[%emt 0:06:31]} 41. Rxc3 {[%emt 0:50:06]} Rxf6 {[%emt 0:50:46]} 42. Rxc5 {[%emt 0:00:00]} gxf5+ {[%emt 0:00:00]} 43. Rxf5 {[%emt 0:00:00]} Rh6 {[%emt 0:00:00]} 44. Rxa5 {[%emt 0:00:00]} Rxh2 {[%emt 0:00:00]} 45. f4 {[%emt 0:00:00]} h5 {[%emt 0:00:00]} 46. Kf5 {[%emt 0:00:00]} h4 {[%emt 0:00:00]} 47. Ra7+ {[%emt 0:00:00]} Kd6 {[%emt 0:00:00]} 48. Kf6 {[%emt 0:00:00]} h3 {[%emt 0:00:00]} 49. Rh7 {[%emt 0:00:00]} Kc6 {[%emt 0:00:00]} 50. f5 {[%emt 0:00:00]} Rh1 {[%emt 0:00:00]} 51. Kf7 {[%emt 0:00:00]} h2 {[%emt 0:00:00]} 52. f6 {[%emt 0:00:00]} Kb6 {[%emt 0:00:00]} 53. Rh3 {[%emt 0:01:24]} Ka5 {[%emt 0:00:00]} 54. Rh4 {[%emt 0:00:06]} Ka6 {[%emt 0:00:00]} 55. Rh5 {[%emt 0:00:09]} Kb6 {[%emt 0:00:00]} 56. Rb5+ {[%emt 0:00:16]} Ka6 {[%emt 0:00:00]} 57. Rb2 {[%emt 0:00:58]} Ka5 {[%emt 0:00:00]} 58. Re2 {[%emt 0:00:17]} Kxa4 {[%emt 0:00:00]} 59. Ke7 {[%emt 0:00:10]} 1-0

[Event "FIDE Womens Grand Swiss 2023"]
[Site "Douglas/Isle of Man"]
[Date "2023.11.04"]
[Round "10.13"]
[White "Dronavalli, Harika"]
[Black "Beydullayeva, Govhar"]
[Result "1-0"]
[ECO "D02"]
[WhiteElo "2502"]
[BlackElo "2383"]
[Annotator "ChessBase"]
[PlyCount "151"]
[EventDate "2023.10.04"]
[EventType "swiss"]
[EventCountry "GBR"]
[SourceTitle "playchess.com"]
[Source "ChessBase"]
[SourceQuality "1"]
[TimeControl "40/6000+30:20/3000+30:900+30"]

1. d4 {[%emt 0:10:05]} Nf6 {[%emt 0:10:07]} 2. Nf3 {[%emt 0:00:14]} d5 {[%emt 0:00:12]} 3. Bf4 {[%emt 0:00:10]} e6 {[%emt 0:00:34]} 4. e3 {[%emt 0:02:16]} c5 {[%emt 0:00:17]} 5. Nbd2 {[%emt 0:01:13]} Qb6 {[%emt 0:01:04]} 6. Rb1 {[%emt 0:02:07]} Bd6 {[%emt 0:01:10]} 7. dxc5 {[%emt 0:17:33]} Qxc5 {[%emt 0:01:49]} 8. b4 {[%emt 0:03:57]} Qc7 {[%emt 0:00:42]} 9. Bxd6 {[%emt 0:00:08]} Qxd6 {[%emt 0:00:03]} 10. c4 {[%emt 0:00:06]} Nbd7 {[%emt 0:05:22]} 11. Be2 {[%emt 0:05:00]} b6 {[%emt 0:02:11]} 12. cxd5 {[%emt 0:09:43]} Nxd5 {[%emt 0:18:37]} 13. Nc4 {[%emt 0:00:45]} Qe7 {[%emt 0:08:54]} 14. Qd2 {[%emt 0:01:21]} N7f6 {[%emt 0:03:44]} 15. Bd3 {[%emt 0:03:59]} O-O {[%emt 0:14:35]} 16. e4 {[%emt 0:01:32]} b5 {[%emt 0:04:49]} 17. Na5 {[%emt 0:05:02]} e5 {[%emt 0:07:18]} 18. Nc6 {[%emt 0:11:35]} Qc7 {[%emt 0:07:11]} 19. Ncxe5 {[%emt 0:05:19]} Nb6 {[%emt 0:01:10]} 20. Rc1 {[%emt 0:03:20]} Qb7 {[%emt 0:03:08]} 21. O-O {[%emt 0:01:26]} a6 {[%emt 0:01:40]} 22. Nc6 {[%emt 0:06:42]} Nc4 {[%emt 0:03:08]} 23. Bxc4 {[%emt 0:01:48]} bxc4 {[%emt 0:00:10]} 24. Na5 {[%emt 0:03:51]} Qxe4 {[%emt 0:02:56]} 25. Rxc4 {[%emt 0:00:07]} Qg6 {[%emt 0:02:13]} 26. Re1 {[%emt 0:04:07]} Be6 {[%emt 0:01:00]} 27. Rd4 {[%emt 0:01:15]} Rac8 {[%emt 0:02:22]} 28. a3 {[%emt 0:01:21]} Rfe8 {[%emt 0:00:55]} 29. Ne5 {[%emt 0:02:58]} Qc2 {[%emt 0:03:56]} 30. Qxc2 {[%emt 0:03:52]} Rxc2 {[%emt 0:00:01]} 31. h3 {[%emt 0:00:13]} Bd5 {[%emt 0:02:01]} 32. Re3 {[%emt 0:01:07]} h5 {[%emt 0:02:06]} 33. Nec4 {[%emt 0:01:24]} Rc1+ {[%emt 0:01:00]} 34. Kh2 {[%emt 0:00:02]} Rb8 {[%emt 0:00:27]} 35. Red3 {[%emt 0:00:37]} Be4 {[%emt 0:00:36]} 36. Rd2 {[%emt 0:00:56]} Rc3 {[%emt 0:00:28]} 37. f3 {[%emt 0:00:25]} Bb1 {[%emt 0:00:28]} 38. Nc6 {[%emt 0:00:45]} Re8 {[%emt 0:00:04]} 39. N6e5 {[%emt 0:00:07]} Bc2 {[%emt 0:00:26]} 40. Rd8 {[%emt 0:00:18]} Rxd8 {[%emt 0:01:04]} 41. Rxd8+ {[%emt 0:50:07]} Kh7 {[%emt 0:50:02]} 42. Nxf7 {[%emt 0:02:01]} Bb3 {[%emt 0:00:00]} 43. Rh8+ {[%emt 0:00:00]} Kg6 {[%emt 0:00:00]} 44. Rc8 {[%emt 0:00:00]} Bxc4 {[%emt 0:00:00]} 45. Ne5+ {[%emt 0:00:00]} Kg5 {[%emt 0:00:00]} 46. Rc5 {[%emt 0:00:00]} h4 {[%emt 0:00:00]} 47. Nxc4+ {[%emt 0:00:00]} Kf4 {[%emt 0:00:00]} 48. a4 {[%emt 0:00:00]} g5 {[%emt 0:00:00]} 49. Nd6 {[%emt 0:00:00]} Rxc5 {[%emt 0:00:00]} 50. bxc5 {[%emt 0:00:00]} Nd5 {[%emt 0:00:03]} 51. c6 {[%emt 0:00:00]} Ke5 {[%emt 0:00:34]} 52. Ne4 {[%emt 0:00:00]} a5 {[%emt 0:00:32]} 53. g3 {[%emt 0:00:00]} Nb6 {[%emt 0:00:34]} 54. c7 {[%emt 0:00:00]} Ke6 {[%emt 0:00:03]} 55. c8=Q+ {[%emt 0:00:00]} Nxc8 {[%emt 0:00:06]} 56. Nxg5+ {[%emt 0:00:00]} Ke5 {[%emt 0:00:57]} 57. Ne4 {[%emt 0:00:33]} Nb6 {[%emt 0:00:04]} 58. Nc5 {[%emt 0:00:03]} Kd5 {[%emt 0:01:16]} 59. Nb3 {[%emt 0:00:07]} hxg3+ {[%emt 0:00:34]} 60. Kxg3 {[%emt 0:00:05]} Nxa4 {[%emt 0:00:21]} 61. Kf4 {[%emt 0:15:18]} Ke6 {[%emt 0:16:30]} 62. Kg5 {[%emt 0:00:43]} Kf7 {[%emt 0:00:06]} 63. Nxa5 {[%emt 0:00:06]} Nc5 {[%emt 0:00:05]} 64. Nc6 {[%emt 0:00:22]} Ne6+ {[%emt 0:00:11]} 65. Kf5 {[%emt 0:00:27]} Ng7+ {[%emt 0:00:03]} 66. Ke5 {[%emt 0:00:33]} Kg6 {[%emt 0:00:05]} 67. Nd4 {[%emt 0:00:47]} Nh5 {[%emt 0:02:23]} 68. f4 {[%emt 0:01:07]} Nf6 {[%emt 0:00:30]} 69. Ke6 {[%emt 0:01:03]} Ne4 {[%emt 0:01:50]} 70. f5+ {[%emt 0:01:01]} Kg5 {[%emt 0:00:04]} 71. Ke5 {[%emt 0:00:11]} Nf2 {[%emt 0:00:45]} 72. Ne6+ {[%emt 0:00:54]} Kh6 {[%emt 0:00:36]} 73. Nf4 {[%emt 0:00:36]} Kg7 {[%emt 0:01:10]} 74. Ke6 {[%emt 0:00:12]} Kf8 {[%emt 0:01:36]} 75. f6 {[%emt 0:00:18]} Ne4 {[%emt 0:00:23]} 76. Ng6+ {[%emt 0:00:13]} 1-0

[Event "FIDE Womens Grand Swiss 2023"]
[Site "Douglas/Isle of Man"]
[Date "2023.11.04"]
[Round "10.14"]
[White "Kiolbasa, Oliwia"]
[Black "Paehtz, Elisabeth"]
[Result "1/2-1/2"]
[ECO "C02"]
[WhiteElo "2375"]
[BlackElo "2484"]
[Annotator "ChessBase"]
[PlyCount "88"]
[EventDate "2023.10.04"]
[EventType "swiss"]
[EventCountry "GBR"]
[SourceTitle "playchess.com"]
[Source "ChessBase"]
[SourceQuality "1"]
[TimeControl "40/6000+30:20/3000+30:900+30"]

1. e4 {[%emt 0:10:04]} e6 {[%emt 0:10:02]} 2. d4 {[%emt 0:00:11]} d5 {[%emt 0:00:03]} 3. e5 {[%emt 0:00:09]} c5 {[%emt 0:00:04]} 4. c3 {[%emt 0:00:09]} Nc6 {[%emt 0:00:06]} 5. Nf3 {[%emt 0:00:08]} Bd7 {[%emt 0:00:03]} 6. Be2 {[%emt 0:00:30]} f6 {[%emt 0:00:20]} 7. O-O {[%emt 0:03:06]} fxe5 {[%emt 0:00:03]} 8. dxe5 {[%emt 0:00:13]} Nh6 {[%emt 0:00:46]} 9. Re1 {[%emt 0:02:19]} Qc7 {[%emt 0:02:07]} 10. Bd3 {[%emt 0:08:35]} O-O-O {[%emt 0:12:10]} 11. b4 {[%emt 0:02:41]} Nf7 {[%emt 0:02:23]} 12. Bf4 {[%emt 0:08:33]} Be7 {[%emt 0:22:37]} 13. h4 {[%emt 0:11:04]} h6 {[%emt 0:02:13]} 14. Bg3 {[%emt 0:09:58]} g5 {[%emt 0:02:27]} 15. h5 {[%emt 0:00:07]} cxb4 {[%emt 0:05:17]} 16. a3 {[%emt 0:04:14]} b3 {[%emt 0:00:42]} 17. Qxb3 {[%emt 0:00:59]} g4 {[%emt 0:11:52]} 18. Nd4 {[%emt 0:09:30]} Ncxe5 {[%emt 0:02:19]} 19. Bb5 {[%emt 0:02:31]} Bd6 {[%emt 0:00:09]} 20. Nd2 {[%emt 0:01:22]} Nf3+ {[%emt 0:12:42]} 21. N2xf3 {[%emt 0:12:34]} gxf3 {[%emt 0:00:15]} 22. Bxd7+ {[%emt 0:00:53]} Qxd7 {[%emt 0:00:28]} 23. Bxd6 {[%emt 0:00:46]} Nxd6 {[%emt 0:00:11]} 24. Nxf3 {[%emt 0:00:13]} Nc4 {[%emt 0:04:20]} 25. Ne5 {[%emt 0:04:07]} Nxe5 {[%emt 0:06:15]} 26. Rxe5 {[%emt 0:00:05]} Rhf8 {[%emt 0:01:15]} 27. Qb4 {[%emt 0:02:04]} Kb8 {[%emt 0:01:44]} 28. Rae1 {[%emt 0:03:16]} Qf7 {[%emt 0:02:27]} 29. Qd4 {[%emt 0:00:38]} Rd6 {[%emt 0:01:20]} 30. c4 {[%emt 0:02:55]} Rfd8 {[%emt 0:01:42]} 31. cxd5 {[%emt 0:03:31]} exd5 {[%emt 0:00:22]} 32. Re7 {[%emt 0:02:37]} Qf6 {[%emt 0:00:11]} 33. Qxf6 {[%emt 0:02:51]} Rxf6 {[%emt 0:00:04]} 34. R1e6 {[%emt 0:00:03]} Rd6 {[%emt 0:04:24]} 35. Rxf6 {[%emt 0:00:45]} Rxf6 {[%emt 0:00:05]} 36. Rd7 {[%emt 0:00:12]} Rf5 {[%emt 0:00:10]} 37. g4 {[%emt 0:00:48]} Rf4 {[%emt 0:00:06]} 38. Rxd5 {[%emt 0:00:07]} Rxg4+ {[%emt 0:00:09]} 39. Kf1 {[%emt 0:00:04]} Kc7 {[%emt 0:02:07]} 40. Ke2 {[%emt 0:01:06]} Ra4 {[%emt 0:00:50]} 41. Rd3 {[%emt 0:28:58]} Ra5 {[%emt 0:20:55]} 42. Ke3 {[%emt 0:01:40]} Rxh5 {[%emt 0:00:39]} 43. Ke4 {[%emt 0:00:11]} Rh2 {[%emt 0:04:45]} 44. f4 {[%emt 0:00:53]} b5 {[%emt 0:05:08]} 1/2-1/2